fUSD/lending_fUSD_20240212
["ID","MTS","AMOUNT","RATE_DAILY","PERIOD"]
[313837707,1707748318587,-1169.49,0.0002805,2]
[313837708,1707748318596,-2525.28,0.0002805,2]
[313837709,1707748318606,-150.0,0.00028051,2]
[313837710,1707748318615,-150.0,0.00028051,2]
[313837711,1707748318624,-660.1,0.00028052,2]
[313837712,1707748318634,-676.33,0.00028052,2]
[313837713,1707748318643,-500.0,0.00028052,2]
[313837714,1707748318653,-480.7564585,0.00028052,2]
[313837715,1707748318662,-500.0,0.00028052,2]
[313837716,1707748318672,-426.03339687,0.00028052,2]
[313837717,1707748318682,-526.84,0.00028052,2]
[313837718,1707748318691,-269.93537477,0.00028052,2]
[313837719,1707748318700,-529.5,0.00028052,2]
[313837720,1707748318709,-652.95,0.00028052,2]
[313837721,1707748318719,-651.67,0.00028052,2]
[313837722,1707748318728,-567.71,0.00028052,2]
[313837723,1707748318737,-500.0,0.00028052,2]
[313837724,1707748318746,-784.11,0.00028052,2]
[313837725,1707748318755,-524.91,0.00028052,2]
[313837726,1707748318764,-872.77,0.00028052,2]
[313837727,1707748318773,-639.25,0.00028052,2]
[313837728,1707748318783,-500.0,0.00028052,2]
[313837729,1707748318792,-1296.69,0.00028052,2]
[313837730,1707748318802,-256.79235361,0.00028052,2]
[313837731,1707748318812,-517.62,0.00028052,2]
[313837732,1707748318821,-4333.7,0.00028052,2]
[313837733,1707748318830,-1895.9,0.00028052,2]
[313837734,1707748318840,-923.15,0.00028052,2]
[313837735,1707748318849,-1121.1,0.00028052,2]
[313837736,1707748318857,-500.0,0.00028052,2]
[313837737,1707748318866,-4100.88,0.00028052,2]
[313837738,1707748318875,-791.85,0.00028052,2]
[313837739,1707748318885,-1394.8,0.00028052,2]
[313837740,1707748318894,-575.24,0.00028052,2]
[313837741,1707748318904,-715.53,0.00028052,2]
[313837742,1707748318913,-637.77,0.00028052,2]
[313837743,1707748318923,-1763.67,0.00028052,2]
[313837744,1707748318932,-2032.84,0.00028052,2]
[313837745,1707748318942,-686.28,0.00028052,2]
[313837746,1707748318951,-689.11,0.00028052,2]
[313837747,1707748318960,-1500.18,0.00028052,2]
[313837748,1707748318969,-4391.98,0.00028052,2]
[313837749,1707748318978,-637.5,0.00028052,2]
[313837750,1707748318987,-1040.77,0.00028052,2]
[313837751,1707748318996,-1065.07,0.00028052,2]
[313837752,1707748319006,-500.0,0.00028052,2]
[313837753,1707748319015,-596.16,0.00028052,2]
[313837754,1707748319024,-706.62,0.00028052,2]
[313837755,1707748319034,-500.0,0.00028052,2]
[313837756,1707748319043,-4062.09,0.00028052,2]
[313837757,1707748319052,-1058.56,0.00028052,2]
[313837758,1707748319062,-721.91,0.00028052,2]
[313837759,1707748319071,-3863.5,0.00028052,2]
[313837760,1707748319081,-559.05,0.00028052,2]
[313837761,1707748319090,-5323.17,0.00028052,2]
[313837762,1707748319099,-1797.81,0.00028052,2]
[313837763,1707748319109,-683.21,0.00028052,2]
[313837764,1707748319118,-1838.78,0.00028052,2]
[313837765,1707748319128,-508.34,0.00028052,2]
[313837766,1707748319137,-945.99,0.00028052,2]
[313837767,1707748319146,-874.97,0.00028052,2]
[313837768,1707748319155,-500.0,0.00028052,2]
[313837769,1707748319165,-2272.98,0.00028052,2]
[313837770,1707748319175,-1286.15,0.00028052,2]
[313837771,1707748319185,-502.26,0.00028052,2]
[313837772,1707748319195,-639.88,0.00028054,2]
[313837773,1707748319205,-524.07,0.00028054,2]
[313837774,1707748319214,-859.17,0.00028054,2]
[313837775,1707748319224,-8642.09,0.00028054,2]
[313837776,1707748319234,-500.0,0.00028054,2]
[313837777,1707748319243,-907.74,0.00028054,2]
[313837778,1707748319253,-659.8,0.00028054,2]
[313837779,1707748319262,-6204.93,0.00028054,2]
[313837780,1707748319272,-500.0,0.00028054,2]
[313837781,1707748319283,-1134.83,0.00028054,2]
[313837782,1707748319293,-1147.71,0.00028054,2]
[313837783,1707748319306,-614.18477369,0.00028054,2]
[313837784,1707748319319,-2142.38,0.00028054,2]
[313837785,1707748319329,-1578.9,0.00028054,2]
[313837786,1707748319340,-1527.65,0.00028054,2]
[313837787,1707748319350,-628.61,0.00028054,2]
[313837788,1707748319365,-1715.49,0.00028054,2]
[313837789,1707748319375,-1537.51,0.00028054,2]
[313837790,1707748319385,-1757.6,0.00028054,2]
[313837791,1707748319395,-2089.11,0.00028054,2]
[313837792,1707748319406,-1017.68,0.00028054,2]
[313837793,1707748319415,-1161.37,0.00028054,2]
[313837794,1707748319425,-590.03,0.00028054,2]
[313837795,1707748319435,-10286.15,0.00028054,2]
[313837796,1707748319444,-1897.21,0.00028054,2]
[313837797,1707748319455,-935.54,0.00028054,2]
[313837798,1707748319465,-7934.79,0.00028054,2]
[313837799,1707748319474,-500.0,0.00028054,14]
[313837800,1707748319484,-2190.55,0.00028054,2]
[313837801,1707748319493,-1376.25,0.00028054,2]
[313837802,1707748319504,-6405.5,0.00028054,2]
[313837803,1707748319513,-4161.56,0.00028054,2]
[313837804,1707748319523,-692.19,0.00028054,2]
[313837805,1707748319532,-18737.32587774,0.00028095,2]
[313837806,1707748319542,-1262.54,0.00028135,2]
[313837807,1707748319553,-1207.47,0.00028135,2]
[313837808,1707748319562,-581.28,0.00028135,2]
[313837809,1707748319571,-500.0,0.00028135,2]
[313837810,1707748319580,-500.0,0.00028135,2]
[313837811,1707748319589,-500.0,0.00028135,2]
[313837812,1707748319599,-662.95,0.00028135,2]
[313837813,1707748319608,-500.0,0.00028135,2]
[313837814,1707748319617,-500.0,0.00028135,2]
[313837815,1707748319626,-500.0,0.00028135,2]
[313837816,1707748319636,-500.0,0.00028135,2]
[313837817,1707748319645,-785.31,0.00028135,2]
[313837818,1707748319654,-500.0,0.00028135,2]
[313837819,1707748319664,-1057.6,0.00028135,2]
[313837820,1707748319673,-623.82,0.00028135,2]
[313837821,1707748319684,-1500.0,0.00028135,2]
[313837822,1707748319693,-681.61,0.00028135,2]
[313837823,1707748319702,-1004.0,0.00028135,2]
[313837824,1707748319711,-500.0,0.00028141,2]
[313837825,1707748319720,-12302.38,0.00028189,2]
[313837826,1707748319729,-7050.1257528,0.000282,2]
[313837827,1707748319738,-9.22621182,0.000282,120]
[313837828,1707748319747,-1000.0,0.000282,2]
[313837829,1707748319756,-1366.1,0.00028226,2]
[313837830,1707748319766,-2110.37,0.00028241,2]
[313837831,1707748319775,-6142.49,0.00028241,2]
[313837832,1707748319785,-676.37,0.00028241,2]
[313837833,1707748319795,-1791.31,0.00028241,2]
[313837834,1707748319807,-564.38,0.00028241,2]
[313837835,1707748319816,-2125.32,0.00028241,2]
[313837836,1707748319825,-500.0,0.00028241,2]
[313837837,1707748319835,-746.12,0.00028241,2]
[313837838,1707748319844,-6506.4,0.00028241,2]
[313837839,1707748319854,-746.22,0.00028241,2]
[313837840,1707748319863,-500.0,0.00028241,2]
[313837841,1707748319873,-500.0,0.00028241,2]
[313837842,1707748319882,-1926.94,0.00028241,2]
[313837843,1707748319892,-1829.63,0.00028241,2]
[313837844,1707748319901,-504.23,0.00028241,2]
[313837845,1707748319911,-2230.81,0.00028241,2]
[313837846,1707748319921,-500.0,0.00028241,2]
[313837847,1707748319930,-5597.11,0.00028241,2]
[313837848,1707748319940,-2899.6,0.00028241,2]
[313837849,1707748319950,-225.79,0.00028298,2]
[313837850,1707748319960,-2611.65,0.00028324,2]
[313837851,1707748319969,-1871.51,0.00028324,2]
[313837852,1707748319979,-15228.44,0.00028324,2]
[313837853,1707748319989,-1123.04,0.00028324,2]
[313837854,1707748319998,-669.38,0.00028324,2]
[313837855,1707748320009,-7454.03,0.00028324,2]
[313837856,1707748320019,-656.99,0.00028324,2]
[313837857,1707748320029,-1132.61,0.00028324,2]
[313837858,1707748320040,-607.87,0.00028324,2]
[313837859,1707748320050,-2975.67,0.00028324,2]
[313837860,1707748320061,-1380.57,0.00028324,2]
[313837861,1707748320071,-1785.04,0.00028324,2]
[313837862,1707748320081,-1602.71,0.00028324,2]
[313837863,1707748320091,-1140.13,0.00028324,2]
[313837864,1707748320101,-2106.31,0.00028324,2]
[313837865,1707748320111,-1276.82,0.00028324,2]
[313837866,1707748320120,-11488.97,0.00028324,2]
[313837867,1707748320130,-779.37,0.00028324,2]
[313837868,1707748320140,-522.1,0.00028324,2]
[313837869,1707748320149,-862.25,0.00028324,2]
[313837870,1707748320160,-954.69,0.00028324,2]
[313837871,1707748320169,-4038.41,0.00028324,2]
[313837872,1707748320179,-2125.47,0.00028324,2]
[313837873,1707748320189,-3098.18,0.00028324,2]
[313837874,1707748320198,-4848.26,0.00028324,2]
[313837875,1707748320208,-1169.49,0.00028324,2]
[313837876,1707748320217,-660.1,0.00028326,2]
[313837877,1707748320226,-676.33,0.00028326,2]
[313837878,1707748320236,-436.90204076,0.00028326,2]
[313837879,1707748320246,-500.0,0.00028326,2]
[313837880,1707748320256,-526.84,0.00028326,2]
[313837881,1707748320266,-529.5,0.00028326,2]
[313837882,1707748320451,-652.95,0.00028326,2]
[313837883,1707748320468,-651.67,0.00028326,2]
[313837884,1707748320478,-567.71,0.00028326,2]
[313837885,1707748320488,-500.0,0.00028326,2]
[313837886,1707748320498,-784.11,0.00028326,2]
[313837887,1707748320507,-524.91,0.00028326,2]
[313837888,1707748320516,-872.77,0.00028326,2]
[313837889,1707748320526,-639.25,0.00028326,2]
[313837890,1707748320536,-500.0,0.00028326,2]
[313837891,1707748320545,-1296.69,0.00028326,2]
[313837892,1707748320556,-517.62,0.00028326,2]
[313837893,1707748320566,-4333.7,0.00028326,2]
[313837894,1707748320575,-1895.9,0.00028326,2]
[313837895,1707748320584,-923.15,0.00028326,2]
[313837896,1707748320594,-1121.1,0.00028326,2]
[313837897,1707748320604,-500.0,0.00028326,2]
[313837898,1707748320613,-4100.88,0.00028326,2]
[313837899,1707748320623,-791.85,0.00028326,2]
[313837900,1707748320634,-1394.8,0.00028326,2]
[313837901,1707748320644,-575.24,0.00028326,2]
[313837902,1707748320654,-715.53,0.00028326,2]
[313837903,1707748320664,-637.77,0.00028326,2]
[313837904,1707748320673,-1763.67,0.00028326,2]
[313837905,1707748320683,-2032.84,0.00028326,2]
[313837906,1707748320692,-686.28,0.00028326,2]
[313837907,1707748320702,-689.11,0.00028326,2]
[313837908,1707748320710,-1500.18,0.00028326,2]
[313837909,1707748320720,-4391.98,0.00028326,2]
[313837910,1707748320730,-637.5,0.00028326,2]
[313837911,1707748320739,-1040.77,0.00028326,2]
[313837912,1707748320748,-1065.07,0.00028326,2]
[313837913,1707748320757,-563.44339497,0.00028326,2]
[313837914,1707748320767,-596.16,0.00028326,2]
[313837915,1707748320777,-706.62,0.00028326,2]
[313837916,1707748320786,-500.0,0.00028326,2]
[313837917,1707748320796,-4062.09,0.00028326,2]
[313837918,1707748320808,-1058.56,0.00028326,2]
[313837919,1707748320817,-721.91,0.00028326,2]
[313837920,1707748320827,-3863.5,0.00028326,2]
[313837921,1707748320837,-559.05,0.00028326,2]
[313837922,1707748320846,-5323.17,0.00028326,2]
[313837923,1707748320856,-1797.81,0.00028326,2]
[313837924,1707748320866,-683.21,0.00028326,2]
[313837925,1707748320875,-1838.78,0.00028326,2]
[313837926,1707748320885,-508.34,0.00028326,2]
[313837927,1707748320894,-945.99,0.00028326,2]
[313837928,1707748320903,-874.97,0.00028326,2]
[313837929,1707748320913,-500.0,0.00028326,2]
[313837930,1707748320923,-2272.98,0.00028326,2]
[313837931,1707748320932,-1286.15,0.00028326,2]
[313837932,1707748320943,-639.88,0.00028328,2]
[313837933,1707748320953,-524.07,0.00028328,2]
[313837934,1707748320962,-859.17,0.00028328,2]
[313837935,1707748320972,-8642.09,0.00028328,2]
[313837936,1707748320982,-500.0,0.00028328,2]
[313837937,1707748320991,-907.74,0.00028328,2]
[313837938,1707748321001,-6204.93,0.00028328,2]
[313837939,1707748321010,-1134.83,0.00028328,2]
[313837940,1707748321020,-500.0,0.00028328,2]
[313837941,1707748321030,-1147.71,0.00028328,2]
[313837942,1707748321039,-2142.38,0.00028328,2]
[313837943,1707748321049,-1578.9,0.00028328,2]
[313837944,1707748321062,-1527.65,0.00028328,2]
[313837945,1707748321072,-628.61,0.00028328,2]
[313837946,1707748321081,-1715.49,0.00028328,2]
[313837947,1707748321091,-1537.51,0.00028328,2]
[313837948,1707748321101,-1757.6,0.00028328,2]
[313837949,1707748321110,-2089.11,0.00028328,2]
[313837950,1707748321120,-1017.68,0.00028328,2]
[313837951,1707748321130,-1161.37,0.00028328,2]
[313837952,1707748321140,-590.03,0.00028328,2]
[313837953,1707748321149,-10286.15,0.00028328,2]
[313837954,1707748321158,-1897.21,0.00028328,2]
[313837955,1707748321168,-935.54,0.00028328,2]
[313837956,1707748321177,-7934.79,0.00028328,2]
[313837957,1707748321188,-500.0,0.00028328,14]
[313837958,1707748321197,-2190.55,0.00028328,2]
[313837959,1707748321207,-1376.25,0.00028328,2]
[313837960,1707748321217,-6405.5,0.00028328,2]
[313837961,1707748321227,-4161.56,0.00028328,2]
[313837962,1707748321236,-692.19,0.00028328,2]
[313837963,1707748321245,-12302.38,0.00028347,2]
[313837964,1707748321254,-205.0,0.00028394,9]
[313837965,1707748321263,-449.0,0.000284,17]
[313837966,1707748321273,-1262.54,0.00028409,2]
[313837967,1707748321282,-1207.47,0.00028409,2]
[313837968,1707748321291,-581.28,0.00028409,2]
[313837969,1707748321300,-500.0,0.00028409,2]
[313837970,1707748321313,-500.0,0.00028409,2]
[313837971,1707748321322,-500.0,0.00028409,2]
[313837972,1707748321331,-662.95,0.00028409,2]
[313837973,1707748321342,-474.54169181,0.00028409,2]
[313837974,1707748321352,-500.0,0.00028409,2]
[313837975,1707748321364,-500.0,0.00028409,2]
[313837976,1707748321373,-500.0,0.00028409,2]
[313837977,1707748321383,-785.31,0.00028409,2]
[313837978,1707748321393,-500.0,0.00028409,2]
[313837979,1707748321403,-1057.6,0.00028409,2]
[313837980,1707748321413,-623.82,0.00028409,2]
[313837981,1707748321423,-1500.0,0.00028409,2]
[313837982,1707748321432,-681.61,0.00028409,2]
[313837983,1707748321443,-1004.0,0.00028409,2]
[313837984,1707748321454,-152.96651372,0.00028481,2]
[313837985,1707748321464,-449.92172356,0.00028493,5]
[313837986,1707748321474,-150.0,0.00028493,2]
[313837987,1707748321484,-1366.1,0.000285,2]
[313837988,1707748321494,-12302.38,0.00028505,2]
[313837989,1707748321504,-2110.37,0.00028515,2]
[313837990,1707748321514,-6142.49,0.00028515,2]
[313837991,1707748321524,-676.37,0.00028515,2]
[313837992,1707748321534,-1791.31,0.00028515,2]
[313837993,1707748321545,-564.38,0.00028515,2]
[313837994,1707748321556,-2125.32,0.00028515,2]
[313837995,1707748321565,-481.81171636,0.00028515,2]
[313837996,1707748321575,-746.12,0.00028515,2]
[313837997,1707748321585,-6506.4,0.00028515,2]
[313837998,1707748321595,-746.22,0.00028515,2]
[313837999,1707748321605,-500.0,0.00028515,2]
[313838000,1707748321614,-500.0,0.00028515,2]
[313838001,1707748321625,-1926.94,0.00028515,2]
[313838002,1707748321634,-1829.63,0.00028515,2]
[313838003,1707748321643,-504.23,0.00028515,2]
[313838004,1707748321654,-2230.81,0.00028515,2]
[313838005,1707748321663,-500.0,0.00028515,2]
[313838006,1707748321673,-5597.11,0.00028515,2]
[313838007,1707748321683,-2899.6,0.00028515,2]
[313838008,1707748321693,-151.0,0.00028547,30]
[313838009,1707748321703,-2611.65,0.00028598,2]
[313838010,1707748321712,-1871.51,0.00028598,2]
[313838011,1707748321721,-15228.44,0.00028598,2]
[313838012,1707748321731,-1123.04,0.00028598,2]
[313838013,1707748321740,-669.38,0.00028598,2]
[313838014,1707748321749,-7454.03,0.00028598,2]
[313838015,1707748321759,-656.99,0.00028598,2]
[313838016,1707748321768,-1132.61,0.00028598,2]
[313838017,1707748321778,-607.87,0.00028598,2]
[313838018,1707748321788,-2975.67,0.00028598,2]
[313838019,1707748321797,-1380.57,0.00028598,2]
[313838020,1707748321808,-1785.04,0.00028598,2]
[313838021,1707748321817,-1602.71,0.00028598,2]
[313838022,1707748321826,-1140.13,0.00028598,2]
[313838023,1707748321835,-2106.31,0.00028598,2]
[313838024,1707748321845,-1276.82,0.00028598,2]
[313838025,1707748321854,-11488.97,0.00028598,2]
[313838026,1707748321863,-779.37,0.00028598,2]
[313838027,1707748321873,-522.1,0.00028598,2]
[313838028,1707748321883,-862.25,0.00028598,2]
[313838029,1707748321892,-954.69,0.00028598,2]
[313838030,1707748321901,-4038.41,0.00028598,2]
[313838031,1707748321910,-2125.47,0.00028598,2]
[313838032,1707748321920,-3098.18,0.00028598,2]
[313838033,1707748321929,-4848.26,0.00028598,2]
[313838034,1707748321939,-1169.49,0.00028598,2]
[313838035,1707748321948,-660.1,0.000286,2]
[313838036,1707748321957,-676.33,0.000286,2]
[313838037,1707748321967,-249.40416214,0.000286,2]
[313838038,1707748321976,-526.84,0.000286,2]
[313838039,1707748321985,-529.5,0.000286,2]
[313838040,1707748321995,-652.95,0.000286,2]
[313838041,1707748322004,-651.67,0.000286,2]
[313838042,1707748322014,-567.71,0.000286,2]
[313838043,1707748322024,-562.88,0.000286,2]
[313838044,1707748322034,-784.11,0.000286,2]
[313838045,1707748322044,-524.91,0.000286,2]
[313838046,1707748322055,-872.77,0.000286,2]
[313838047,1707748322065,-639.25,0.000286,2]
[313838048,1707748322075,-311.32730063,0.000286,2]
[313838049,1707748322084,-1296.69,0.000286,2]
[313838050,1707748322093,-517.62,0.000286,2]
[313838051,1707748322103,-4333.7,0.000286,2]
[313838052,1707748322113,-1895.9,0.000286,2]
[313838053,1707748322122,-923.15,0.000286,2]
[313838054,1707748322131,-1121.1,0.000286,2]
[313838055,1707748322141,-500.0,0.000286,2]
[313838056,1707748322150,-4100.88,0.000286,2]
[313838057,1707748322159,-791.85,0.000286,2]
[313838058,1707748322169,-1394.8,0.000286,2]
[313838059,1707748322179,-575.24,0.000286,2]
[313838060,1707748322189,-715.53,0.000286,2]
[313838061,1707748322198,-637.77,0.000286,2]
[313838062,1707748322209,-1763.67,0.000286,2]
[313838063,1707748322219,-2032.84,0.000286,2]
[313838064,1707748322228,-686.28,0.000286,2]
[313838065,1707748322238,-689.11,0.000286,2]
[313838066,1707748322247,-4391.98,0.000286,2]
[313838067,1707748322257,-1500.18,0.000286,2]
[313838068,1707748322266,-637.5,0.000286,2]
[313838069,1707748322275,-1040.77,0.000286,2]
[313838070,1707748322285,-1065.07,0.000286,2]
[313838071,1707748322294,-596.16,0.000286,2]
[313838072,1707748322305,-706.62,0.000286,2]
[313838073,1707748322317,-500.0,0.000286,2]
[313838074,1707748322326,-4062.09,0.000286,2]
[313838075,1707748322336,-1058.56,0.000286,2]
[313838076,1707748322345,-721.91,0.000286,2]
[313838077,1707748322354,-3863.5,0.000286,2]
[313838078,1707748322367,-559.05,0.000286,2]
[313838079,1707748322376,-5323.17,0.000286,2]
[313838080,1707748322386,-1797.81,0.000286,2]
[313838081,1707748322396,-683.21,0.000286,2]
[313838082,1707748322405,-1838.78,0.000286,2]
[313838083,1707748322415,-508.34,0.000286,2]
[313838084,1707748322424,-945.99,0.000286,2]
[313838085,1707748322433,-874.97,0.000286,2]
[313838086,1707748322443,-500.0,0.000286,2]
[313838087,1707748322453,-2272.98,0.000286,2]
[313838088,1707748322462,-1286.15,0.000286,2]
[313838089,1707748322472,-639.88,0.00028602,2]
[313838090,1707748322482,-524.07,0.00028602,2]
[313838091,1707748322491,-859.17,0.00028602,2]
[313838092,1707748322501,-8642.09,0.00028602,2]
[313838093,1707748322511,-178.04314213,0.00028602,2]
[313838094,1707748322521,-907.74,0.00028602,2]
[313838095,1707748322531,-6204.93,0.00028602,2]
[313838096,1707748322541,-365.72237028,0.00028602,2]
[313838097,1707748322550,-1134.83,0.00028602,2]
[313838098,1707748322562,-1147.71,0.00028602,2]
[313838099,1707748322572,-2142.38,0.00028602,2]
[313838100,1707748322582,-1578.9,0.00028602,2]
[313838101,1707748322593,-1527.65,0.00028602,2]
[313838102,1707748322603,-628.61,0.00028602,2]
[313838103,1707748322614,-1715.49,0.00028602,2]
[313838104,1707748322623,-1537.51,0.00028602,2]
[313838105,1707748322633,-1757.6,0.00028602,2]
[313838106,1707748322642,-2089.11,0.00028602,2]
[313838107,1707748322653,-1017.68,0.00028602,2]
[313838108,1707748322662,-1161.37,0.00028602,2]
[313838109,1707748322672,-590.03,0.00028602,2]
[313838110,1707748322682,-10286.15,0.00028602,2]
[313838111,1707748322692,-1897.21,0.00028602,2]
[313838112,1707748322701,-935.54,0.00028602,2]
[313838113,1707748322710,-7934.79,0.00028602,2]
[313838114,1707748322719,-230.8037838,0.00028602,14]
[313838115,1707748322728,-2190.55,0.00028602,2]
[313838116,1707748322737,-1376.25,0.00028602,2]
[313838117,1707748322747,-6405.5,0.00028602,2]
[313838118,1707748322755,-692.19,0.00028602,2]
[313838119,1707748322765,-4161.56,0.00028602,2]
[313838120,1707748322774,-12302.38,0.00028664,2]
[313838121,1707748322783,-1262.54,0.00028683,2]
[313838122,1707748322793,-1207.47,0.00028683,2]
[313838123,1707748322802,-581.28,0.00028683,2]
[313838124,1707748322811,-500.0,0.00028683,2]
[313838125,1707748322820,-418.57563079,0.00028683,2]
[313838126,1707748322830,-463.5448143,0.00028683,2]
[313838127,1707748322840,-662.95,0.00028683,2]
[313838128,1707748322849,-500.0,0.00028683,2]
[313838129,1707748322923,-500.0,0.00028683,2]
[313838130,1707748322933,-369.05211159,0.00028683,2]
[313838131,1707748322942,-785.31,0.00028683,2]
[313838132,1707748322950,-648.25668117,0.00028683,2]
[313838133,1707748322959,-1057.6,0.00028683,2]
[313838134,1707748322969,-623.82,0.00028683,2]
[313838135,1707748322978,-432.60649088,0.00028683,2]
[313838136,1707748322987,-681.61,0.00028683,2]
[313838137,1707748322996,-1004.0,0.00028683,2]
[313838138,1707748323005,-500.0,0.00028689,2]
[313838139,1707748323014,-155.0,0.00028767,2]
[313838140,1707748323024,-1366.1,0.00028774,2]
[313838141,1707748323033,-18737.32587774,0.00028776,2]
[313838142,1707748323042,-2110.37,0.00028789,2]
[313838143,1707748323051,-6142.49,0.00028789,2]
[313838144,1707748323061,-676.37,0.00028789,2]
[313838145,1707748323070,-1791.31,0.00028789,2]
[313838146,1707748323079,-564.38,0.00028789,2]
[313838147,1707748323088,-2125.32,0.00028789,2]
[313838148,1707748323097,-746.12,0.00028789,2]
[313838149,1707748323106,-6506.4,0.00028789,2]
[313838150,1707748323115,-746.22,0.00028789,2]
[313838151,1707748323124,-192.22,0.00028789,2]
[313838152,1707748323133,-389.09565052,0.00028789,2]
[313838153,1707748323142,-1926.94,0.00028789,2]
[313838154,1707748323150,-1829.63,0.00028789,2]
[313838155,1707748323159,-504.23,0.00028789,2]
[313838156,1707748323169,-2230.81,0.00028789,2]
[313838157,1707748323178,-443.76236313,0.00028789,2]
[313838158,1707748323187,-5597.11,0.00028789,2]
[313838159,1707748323196,-2899.6,0.00028789,2]
[313838160,1707748323205,-12302.38,0.00028822,2]
[313838161,1707748323214,-150.0,0.00028837,2]
[313838162,1707748323222,-202.0,0.00028837,2]
[313838163,1707748323232,-2611.65,0.00028872,2]
[313838164,1707748323241,-1871.51,0.00028872,2]
[313838165,1707748323249,-15228.44,0.00028872,2]
[313838166,1707748323259,-1123.04,0.00028872,2]
[313838167,1707748323269,-669.38,0.00028872,2]
[313838168,1707748323278,-7454.03,0.00028872,2]
[313838169,1707748323287,-656.99,0.00028872,2]
[313838170,1707748323297,-1132.61,0.00028872,2]
[313838171,1707748323308,-607.87,0.00028872,2]
[313838172,1707748323323,-2975.67,0.00028872,2]
[313838173,1707748323333,-1380.57,0.00028872,2]
[313838174,1707748323342,-1785.04,0.00028872,2]
[313838175,1707748323351,-1602.71,0.00028872,2]
[313838176,1707748323363,-1140.13,0.00028872,2]
[313838177,1707748323373,-2106.31,0.00028872,2]
[313838178,1707748323383,-1276.82,0.00028872,2]
[313838179,1707748323393,-11488.97,0.00028872,2]
[313838180,1707748323403,-779.37,0.00028872,2]
[313838181,1707748323414,-522.1,0.00028872,2]
[313838182,1707748323424,-862.25,0.00028872,2]
[313838183,1707748323434,-954.69,0.00028872,2]
[313838184,1707748323445,-4038.41,0.00028872,2]
[313838185,1707748323455,-2125.47,0.00028872,2]
[313838186,1707748323466,-3098.18,0.00028872,2]
[313838187,1707748323476,-4848.26,0.00028872,2]
[313838188,1707748323486,-1169.49,0.00028872,2]
[313838189,1707748323495,-660.1,0.00028874,2]
[313838190,1707748323505,-676.33,0.00028874,2]
[313838191,1707748323514,-526.84,0.00028874,2]
[313838192,1707748323523,-529.5,0.00028874,2]
[313838193,1707748323533,-651.67,0.00028874,2]
[313838194,1707748323542,-652.95,0.00028874,2]
[313838195,1707748323551,-567.71,0.00028874,2]
[313838196,1707748323562,-784.11,0.00028874,2]
[313838197,1707748323571,-524.91,0.00028874,2]
[313838198,1707748323581,-872.77,0.00028874,2]
[313838199,1707748323591,-639.25,0.00028874,2]
[313838200,1707748323601,-1296.69,0.00028874,2]
[313838201,1707748323611,-517.62,0.00028874,2]
[313838202,1707748323621,-4333.7,0.00028874,2]
[313838203,1707748323631,-1895.9,0.00028874,2]
[313838204,1707748323641,-923.15,0.00028874,2]
[313838205,1707748323651,-1121.1,0.00028874,2]
[313838206,1707748323661,-358.52688878,0.00028874,2]